[Event "Gibraltar Junior Intl U16 2019"]
[Site "Caleta"]
[Date "2019.08.16"]
[Round "2.18"]
[White "Rayner, Hugo"]
[Black "Shepherd, Tom"]
[Result "0-1"]
[ECO "B23"]
[WhiteElo "1448"]
[BlackElo "1659"]
[Annotator "NA"]
[PlyCount "106"]
[EventDate "2019.08.16"]
[EventType "swiss"]
[EventCountry "GGB"]
[SourceTitle "playchess.com"]
[Source "ChessBase"]
[SourceQuality "1"]
[TimeControl "6600+10"]

1. e4 {[%emt 0:00:00]} c5 {[%emt 0:00:00]} 2. Nc3 {[%emt 0:00:00]} d6 {[%emt 0:00:00]} 3. f4 {[%emt 0:00:08]} g6 {[%emt 0:00:00]} 4. Nf3 {[%emt 0:00:12]} Bg7 {[%emt 0:00:00]} 5. Bc4 {[%emt 0:00:24]} Nc6 {[%emt 0:00:04]} 6. O-O {[%emt 0:00:25]} e6 {[%emt 0:00:02]} 7. d3 {[%emt 0:00:24]} Nge7 {[%emt 0:00:04]} 8. Bb3 {[%emt 0:01:39]} O-O {[%emt 0:00:25]} 9. Bd2 {[%emt 0:03:14]} a6 {[%emt 0:01:05]} 10. a4 {[%emt 0:00:22]} Nd4 {[%emt 0:02:52]} 11. Nxd4 {[%emt 0:02:24]} Bxd4+ {[%emt 0:00:34]} 12. Kh1 {[%emt 0:00:24]} Nc6 {[%emt 0:00:09]} 13. Qe1 {[%emt 0:01:10]} Bg7 {[%emt 0:01:35]} 14. Ra3 {[%emt 0:07:16]} Rb8 {[%emt 0:03:22]} 15. Ra2 {[%emt 0:03:34]} Nd4 {[%emt 0:02:14]} 16. Ne2 {[%emt 0:01:22]} Nxb3 {[%emt 0:04:49]} 17. cxb3 {[%emt 0:00:05]} b5 {[%emt 0:00:20]} 18. Bc3 {[%emt 0:02:08]} b4 {[%emt 0:02:17]} 19. Bxg7 {[%emt 0:00:41]} Kxg7 {[%emt 0:00:03]} 20. d4 {[%emt 0:02:31]} Bb7 {[%emt 0:07:23]} 21. dxc5 {[%emt 0:02:15]} dxc5 {[%emt 0:01:50]} 22. Ng3 {[%emt 0:01:28]} f5 {[%emt 0:01:43]} 23. exf5 {[%emt 0:01:49]} exf5 {[%emt 0:00:55]} 24. Ra1 {[%emt 0:00:50]} Qd5 {[%emt 0:04:40]} 25. Qe5+ {[%emt 0:01:24]} Qxe5 {[%emt 0:00:53]} 26. fxe5 {[%emt 0:00:05]} Rfe8 {[%emt 0:02:07]} 27. Rfe1 {[%emt 0:00:40]} Rbd8 {[%emt 0:02:29]} 28. Kg1 {[%emt 0:03:47]} Rd5 {[%emt 0:05:11]} 29. Rad1 {[%emt 0:01:04]} Bc6 {[%emt 0:01:27]} 30. Rxd5 {[%emt 0:05:51]} Bxd5 {[%emt 0:00:12]} 31. Rc1 {[%emt 0:00:46]} Rc8 {[%emt 0:02:53]} 32. a5 {[%emt 0:01:45]} Bxb3 {[%emt 0:01:16]} 33. Kf2 {[%emt 0:03:32]} Kf7 {[%emt 0:02:52]} 34. Ne2 {[%emt 0:00:34]} c4 {[%emt 0:03:06]} 35. Nd4 {[%emt 0:06:40]} Ba4 {[%emt 0:02:04]} 36. Nc2 {[%emt 0:01:32]} Bxc2 {[%emt 0:04:38]} 37. Rxc2 {[%emt 0:00:02]} Ke6 {[%emt 0:00:19]} 38. Ke3 {[%emt 0:02:15]} Kxe5 {[%emt 0:00:17]} 39. g3 {[%emt 0:00:25]} c3 {[%emt 0:05:24]} 40. bxc3 {[%emt 0:01:02]} Rxc3+ {[%emt 0:00:24]} 41. Rxc3 {[%emt 0:00:13]} bxc3 {[%emt 0:00:02]} 42. Kd3 {[%emt 0:00:09]} Kd5 {[%emt 0:00:15]} 43. Kxc3 {[%emt 0:00:14]} Kc5 {[%emt 0:00:03]} 44. h4 {[%emt 0:01:14]} h6 {[%emt 0:00:28]} 45. Kd3 {[%emt 0:00:21]} Kb5 {[%emt 0:00:52]} 46. Kd4 {[%emt 0:00:54]} Kxa5 {[%emt 0:01:08]} 47. Ke5 {[%emt 0:00:18]} g5 {[%emt 0:01:25]} 48. h5 {[%emt 0:03:00]} f4 {[%emt 0:00:28]} 49. gxf4 {[%emt 0:00:33]} gxf4 {[%emt 0:00:02]} 50. Kxf4 {[%emt 0:00:10]} Kb4 {[%emt 0:00:03]} 51. Kf5 {[%emt 0:00:11]} a5 {[%emt 0:00:04]} 52. Kg6 {[%emt 0:00:13]} a4 {[%emt 0:00:03]} 53. Kxh6 {[%emt 0:00:14]} a3 {[%emt 0:00:02]} 0-1

[Event "Gibraltar Junior Intl U16 2019"]
[Site "Caleta"]
[Date "2019.08.16"]
[Round "2.19"]
[White "Patel, Devan"]
[Black "Gaspar Lopez, Rocio"]
[Result "1/2-1/2"]
[ECO "D31"]
[WhiteElo "1659"]
[BlackElo "1367"]
[Annotator "NA"]
[PlyCount "70"]
[EventDate "2019.08.16"]
[EventType "swiss"]
[EventCountry "GGB"]
[SourceTitle "playchess.com"]
[Source "ChessBase"]
[SourceQuality "1"]
[TimeControl "6600+10"]

1. d4 {[%emt 0:00:00]} d5 {[%emt 0:00:00]} 2. c4 {[%emt 0:00:00]} e6 {[%emt 0:00:00]} 3. Nc3 {[%emt 0:00:02]} c6 {[%emt 0:00:36]} 4. Nf3 {[%emt 0:00:05]} dxc4 {[%emt 0:01:08]} 5. e4 {[%emt 0:00:05]} b5 {[%emt 0:01:38]} 6. a4 {[%emt 0:03:43]} Bb4 {[%emt 0:02:29]} 7. Be2 {[%emt 0:04:15]} Bb7 {[%emt 0:04:31]} 8. O-O {[%emt 0:00:47]} a6 {[%emt 0:01:22]} 9. Qc2 {[%emt 0:02:37]} Nf6 {[%emt 0:01:46]} 10. Bg5 {[%emt 0:00:23]} Be7 {[%emt 0:00:36]} 11. e5 {[%emt 0:09:15]} Nd5 {[%emt 0:11:38]} 12. Ne4 {[%emt 0:01:36]} O-O {[%emt 0:08:05]} 13. Nd6 {[%emt 0:15:59]} Qc7 {[%emt 0:02:21]} 14. Bxe7 {[%emt 0:00:38]} Nxe7 {[%emt 0:02:59]} 15. Ng5 {[%emt 0:02:07]} g6 {[%emt 0:03:40]} 16. Nge4 {[%emt 0:03:51]} Nf5 {[%emt 0:08:50]} 17. Nf6+ {[%emt 0:18:06]} Kh8 {[%emt 0:02:32]} 18. Qd2 {[%emt 0:03:37]} Nd7 {[%emt 0:12:34]} 19. Nxf5 {[%emt 0:05:05]} Nxf6 {[%emt 0:23:57]} 20. Qh6 {[%emt 0:01:45]} Rg8 {[%emt 0:11:12]} 21. Ra3 {[%emt 0:00:53]} Ne8 {[%emt 0:03:40]} 22. Rh3 {[%emt 0:00:39]} f6 {[%emt 0:00:30]} 23. Ne3 {[%emt 0:05:09]} Qg7 {[%emt 0:02:03]} 24. f4 {[%emt 0:01:01]} Qxh6 {[%emt 0:00:48]} 25. Rxh6 {[%emt 0:00:02]} f5 {[%emt 0:00:58]} 26. Rf3 {[%emt 0:00:28]} Rg7 {[%emt 0:01:00]} 27. Rfh3 {[%emt 0:00:11]} Kg8 {[%emt 0:00:19]} 28. Nf1 {[%emt 0:00:06]} Nc7 {[%emt 0:00:25]} 29. Nd2 {[%emt 0:00:15]} Rd8 {[%emt 0:00:39]} 30. Nf3 {[%emt 0:00:04]} Rdd7 {[%emt 0:00:21]} 31. Ng5 {[%emt 0:00:17]} Rde7 {[%emt 0:00:29]} 32. Kf2 {[%emt 0:01:49]} Nd5 {[%emt 0:00:11]} 33. Rf3 {[%emt 0:00:24]} Nb4 {[%emt 0:00:35]} 34. Rfh3 {[%emt 0:00:40]} Nd5 {[%emt 0:00:04]} 35. Rf3 {[%emt 0:01:09]} Nb4 {[%emt 0:00:03]} 1/2-1/2

[Event "Gibraltar Junior Intl U16 2019"]
[Site "Caleta"]
[Date "2019.08.16"]
[Round "2.20"]
[White "Popham, Sarah"]
[Black "Hirst, Joe"]
[Result "0-1"]
[ECO "A49"]
[WhiteElo "1372"]
[BlackElo "1639"]
[Annotator "NA"]
[PlyCount "108"]
[EventDate "2019.08.16"]
[EventType "swiss"]
[EventCountry "GGB"]
[SourceTitle "playchess.com"]
[Source "ChessBase"]
[SourceQuality "1"]
[TimeControl "6600+10"]

1. Nf3 {[%emt 0:00:00]} Nf6 {[%emt 0:00:00]} 2. g3 {[%emt 0:00:00]} g6 {[%emt 0:00:00]} 3. Bg2 {[%emt 0:00:05]} Bg7 {[%emt 0:00:05]} 4. d4 {[%emt 0:00:49]} O-O {[%emt 0:00:14]} 5. O-O {[%emt 0:00:10]} d6 {[%emt 0:00:10]} 6. Nc3 {[%emt 0:00:49]} Nbd7 {[%emt 0:00:44]} 7. Re1 {[%emt 0:01:40]} c6 {[%emt 0:04:14]} 8. e4 {[%emt 0:01:08]} Qc7 {[%emt 0:01:08]} 9. Bf4 {[%emt 0:01:58]} e5 {[%emt 0:00:44]} 10. dxe5 {[%emt 0:00:57]} dxe5 {[%emt 0:00:26]} 11. Be3 {[%emt 0:02:47]} Ng4 {[%emt 0:03:18]} 12. Qd2 {[%emt 0:05:54]} Nxe3 {[%emt 0:01:43]} 13. Qxe3 {[%emt 0:00:12]} Nb6 {[%emt 0:02:33]} 14. Qc5 {[%emt 0:03:00]} Nd7 {[%emt 0:10:49]} 15. Qc4 {[%emt 0:02:48]} Nf6 {[%emt 0:00:22]} 16. Rad1 {[%emt 0:02:24]} Be6 {[%emt 0:01:56]} 17. Qc5 {[%emt 0:04:24]} Nh5 {[%emt 0:10:33]} 18. Qd6 {[%emt 0:18:05]} Qb6 {[%emt 0:02:03]} 19. b3 {[%emt 0:23:00]} Rfd8 {[%emt 0:07:33]} 20. Qa3 {[%emt 0:01:26]} Bf8 {[%emt 0:01:47]} 21. Qc1 {[%emt 0:01:55]} Bb4 {[%emt 0:02:34]} 22. Qa1 {[%emt 0:05:08]} Qa5 {[%emt 0:02:31]} 23. Re3 {[%emt 0:04:56]} Bxc3 {[%emt 0:03:08]} 24. Rxd8+ {[%emt 0:01:27]} Rxd8 {[%emt 0:00:31]} 25. Rxc3 {[%emt 0:01:20]} Nf6 {[%emt 0:01:27]} 26. Rd3 {[%emt 0:03:37]} Rxd3 {[%emt 0:08:55]} 27. cxd3 {[%emt 0:00:20]} Bxb3 {[%emt 0:01:40]} 28. a3 {[%emt 0:05:01]} Nd7 {[%emt 0:01:38]} 29. Bh3 {[%emt 0:00:49]} Qc7 {[%emt 0:04:26]} 30. Bxd7 {[%emt 0:02:24]} Qxd7 {[%emt 0:00:21]} 31. Nxe5 {[%emt 0:00:22]} Qd6 {[%emt 0:02:17]} 32. Qb2 {[%emt 0:01:42]} b6 {[%emt 0:01:24]} 33. d4 {[%emt 0:01:02]} Be6 {[%emt 0:01:49]} 34. Qc3 {[%emt 0:01:33]} Bd7 {[%emt 0:02:01]} 35. Qc4 {[%emt 0:01:05]} Be6 {[%emt 0:06:36]} 36. Qxc6 {[%emt 0:02:01]} Qxd4 {[%emt 0:01:30]} 37. Nf3 {[%emt 0:03:27]} Qf6 {[%emt 0:03:29]} 38. Kg2 {[%emt 0:01:41]} Bh3+ {[%emt 0:00:10]} 39. Kxh3 {[%emt 0:00:49]} Qxc6 {[%emt 0:00:07]} 40. Ng5 {[%emt 0:00:17]} h6 {[%emt 0:00:21]} 41. Nf3 {[%emt 0:00:26]} Qxe4 {[%emt 0:00:08]} 42. Kg2 {[%emt 0:00:36]} g5 {[%emt 0:00:14]} 43. h3 {[%emt 0:00:29]} h5 {[%emt 0:00:11]} 44. a4 {[%emt 0:00:50]} g4 {[%emt 0:00:07]} 45. hxg4 {[%emt 0:00:26]} hxg4 {[%emt 0:00:07]} 46. Kf1 {[%emt 0:00:21]} Qxf3 {[%emt 0:00:15]} 47. a5 {[%emt 0:00:02]} Qd1+ {[%emt 0:00:16]} 48. Kg2 {[%emt 0:00:06]} b5 {[%emt 0:00:10]} 49. Kh2 {[%emt 0:00:13]} b4 {[%emt 0:00:14]} 50. f3 {[%emt 0:01:06]} b3 {[%emt 0:00:12]} 51. Kg2 {[%emt 0:00:06]} Qxf3+ {[%emt 0:00:09]} 52. Kg1 {[%emt 0:00:06]} Qxg3+ {[%emt 0:00:15]} 53. Kf1 {[%emt 0:00:02]} Qh2 {[%emt 0:00:09]} 54. Ke1 {[%emt 0:00:02]} b2 {[%emt 0:00:04]} 0-1

[Event "Gibraltar Junior Intl U16 2019"]
[Site "Caleta"]
[Date "2019.08.16"]
[Round "2.21"]
[White "Major, Richard"]
[Black "Khan, Samir"]
[Result "0-1"]
[ECO "C01"]
[WhiteElo "1615"]
[BlackElo "1282"]
[Annotator "NA"]
[PlyCount "88"]
[EventDate "2019.08.16"]
[EventType "swiss"]
[EventCountry "GGB"]
[SourceTitle "playchess.com"]
[Source "ChessBase"]
[SourceQuality "1"]
[TimeControl "6600+10"]

1. e4 {[%emt 0:00:00]} e6 {[%emt 0:00:00]} 2. d4 {[%emt 0:00:04]} d5 {[%emt 0:00:00]} 3. exd5 {[%emt 0:00:06]} exd5 {[%emt 0:00:02]} 4. Nf3 {[%emt 0:00:06]} Nf6 {[%emt 0:00:59]} 5. c4 {[%emt 0:00:06]} Be6 {[%emt 0:00:17]} 6. cxd5 {[%emt 0:01:43]} Nxd5 {[%emt 0:00:42]} 7. Nc3 {[%emt 0:00:45]} Bb4 {[%emt 0:00:53]} 8. Bd2 {[%emt 0:00:50]} O-O {[%emt 0:01:59]} 9. Be2 {[%emt 0:03:49]} Re8 {[%emt 0:02:02]} 10. O-O {[%emt 0:00:08]} Bxc3 {[%emt 0:00:03]} 11. bxc3 {[%emt 0:00:27]} Qd6 {[%emt 0:01:22]} 12. Rb1 {[%emt 0:03:54]} Nb6 {[%emt 0:00:27]} 13. Qc2 {[%emt 0:05:51]} Bxa2 {[%emt 0:01:24]} 14. Qxa2 {[%emt 0:01:03]} Rxe2 {[%emt 0:00:09]} 15. Ne5 {[%emt 0:03:24]} Qd5 {[%emt 0:05:22]} 16. Qc2 {[%emt 0:05:08]} N8d7 {[%emt 0:02:09]} 17. Rbe1 {[%emt 0:02:15]} Rxe1 {[%emt 0:01:21]} 18. Rxe1 {[%emt 0:00:04]} Nxe5 {[%emt 0:02:38]} 19. Rxe5 {[%emt 0:00:13]} Qd6 {[%emt 0:00:29]} 20. Qb3 {[%emt 0:02:26]} Qc6 {[%emt 0:04:03]} 21. Rc5 {[%emt 0:05:35]} Qd7 {[%emt 0:03:37]} 22. Bf4 {[%emt 0:04:17]} c6 {[%emt 0:04:23]} 23. h3 {[%emt 0:08:32]} Nd5 {[%emt 0:02:06]} 24. Bg3 {[%emt 0:00:56]} a5 {[%emt 0:00:25]} 25. c4 {[%emt 0:04:32]} b6 {[%emt 0:00:55]} 26. cxd5 {[%emt 0:02:41]} bxc5 {[%emt 0:00:33]} 27. dxc6 {[%emt 0:01:07]} Qxc6 {[%emt 0:00:17]} 28. Qc4 {[%emt 0:01:12]} a4 {[%emt 0:01:14]} 29. d5 {[%emt 0:00:46]} Qc8 {[%emt 0:02:04]} 30. d6 {[%emt 0:00:54]} a3 {[%emt 0:00:34]} 31. d7 {[%emt 0:03:00]} Qxd7 {[%emt 0:00:24]} 32. Qb3 {[%emt 0:00:20]} a2 {[%emt 0:00:27]} 33. Be5 {[%emt 0:00:55]} a1=Q+ {[%emt 0:00:41]} 34. Bxa1 {[%emt 0:00:03]} Rxa1+ {[%emt 0:00:17]} 35. Kh2 {[%emt 0:00:04]} h6 {[%emt 0:00:06]} 36. Qb8+ {[%emt 0:00:17]} Kh7 {[%emt 0:00:04]} 37. Qe5 {[%emt 0:00:51]} Ra5 {[%emt 0:00:25]} 38. g4 {[%emt 0:00:24]} Qc6 {[%emt 0:00:34]} 39. g5 {[%emt 0:00:36]} hxg5 {[%emt 0:00:21]} 40. h4 {[%emt 0:01:48]} gxh4 {[%emt 0:00:30]} 41. Qh5+ {[%emt 0:01:29]} Qh6 {[%emt 0:00:03]} 42. Qxf7 {[%emt 0:00:29]} Qd6+ {[%emt 0:01:29]} 43. Kh3 {[%emt 0:01:13]} Ra3+ {[%emt 0:00:14]} 44. f3 {[%emt 0:00:01]} Qg3# {[%emt 0:00:36]} 0-1

[Event "Gibraltar Junior Intl U16 2019"]
[Site "Caleta"]
[Date "2019.08.16"]
[Round "2.22"]
[White "Seleznev, Egor"]
[Black "Harbinson, Alec Ryan"]
[Result "1-0"]
[ECO "D02"]
[WhiteElo "1590"]
[BlackElo "1118"]
[Annotator "NA"]
[PlyCount "117"]
[EventDate "2019.08.16"]
[EventType "swiss"]
[EventCountry "GGB"]
[SourceTitle "playchess.com"]
[Source "ChessBase"]
[SourceQuality "1"]
[TimeControl "6600+10"]

1. d4 {[%emt 0:00:01]} Nf6 {[%emt 0:00:00]} 2. Nf3 {[%emt 0:00:20]} e6 {[%emt 0:00:18]} 3. Bf4 {[%emt 0:00:58]} d5 {[%emt 0:00:40]} 4. e3 {[%emt 0:00:36]} Nc6 {[%emt 0:00:29]} 5. c3 {[%emt 0:01:00]} Bd6 {[%emt 0:00:52]} 6. Nbd2 {[%emt 0:01:05]} Qe7 {[%emt 0:01:29]} 7. Ne5 {[%emt 0:01:54]} Bxe5 {[%emt 0:00:57]} 8. dxe5 {[%emt 0:00:59]} Nd7 {[%emt 0:00:18]} 9. Nf3 {[%emt 0:01:12]} h6 {[%emt 0:06:35]} 10. Bb5 {[%emt 0:03:22]} a6 {[%emt 0:02:14]} 11. Bxc6 {[%emt 0:01:38]} bxc6 {[%emt 0:00:56]} 12. Nd4 {[%emt 0:01:23]} Bb7 {[%emt 0:01:33]} 13. Qe2 {[%emt 0:04:04]} c5 {[%emt 0:01:08]} 14. Nc2 {[%emt 0:00:51]} c6 {[%emt 0:02:32]} 15. e4 {[%emt 0:02:19]} Qh4 {[%emt 0:06:36]} 16. g3 {[%emt 0:04:42]} Qd8 {[%emt 0:00:08]} 17. b3 {[%emt 0:05:40]} Qc7 {[%emt 0:01:47]} 18. exd5 {[%emt 0:03:42]} cxd5 {[%emt 0:00:22]} 19. O-O {[%emt 0:05:02]} g5 {[%emt 0:00:50]} 20. Be3 {[%emt 0:03:08]} Qxe5 {[%emt 0:03:17]} 21. Qd2 {[%emt 0:06:53]} Qd6 {[%emt 0:04:10]} 22. f3 {[%emt 0:08:20]} Qc6 {[%emt 0:03:51]} 23. b4 {[%emt 0:05:18]} c4 {[%emt 0:05:36]} 24. Nd4 {[%emt 0:01:25]} Qc7 {[%emt 0:03:04]} 25. f4 {[%emt 0:02:15]} Nf6 {[%emt 0:15:18]} 26. Nf3 {[%emt 0:02:38]} Ne4 {[%emt 0:01:22]} 27. Qd4 {[%emt 0:01:02]} f6 {[%emt 0:03:08]} 28. Rfc1 {[%emt 0:08:02]} gxf4 {[%emt 0:06:32]} 29. Bxf4 {[%emt 0:01:05]} Qc6 {[%emt 0:07:24]} 30. Rf1 {[%emt 0:06:31]} Ke7 {[%emt 0:15:23]} 31. a4 {[%emt 0:08:57]} a5 {[%emt 0:04:30]} 32. bxa5 {[%emt 0:06:52]} Rxa5 {[%emt 0:01:49]} 33. Rfb1 {[%emt 0:04:04]} Bc8 {[%emt 0:02:46]} 34. Nd2 {[%emt 0:02:57]} Nxd2 {[%emt 0:01:40]} 35. Bxd2 {[%emt 0:00:44]} Qc5 {[%emt 0:01:53]} 36. Be3 {[%emt 0:00:51]} Qxd4 {[%emt 0:00:03]} 37. Bxd4 {[%emt 0:00:01]} Bd7 {[%emt 0:00:26]} 38. Bb6 {[%emt 0:00:51]} Ra6 {[%emt 0:00:14]} 39. a5 {[%emt 0:00:22]} f5 {[%emt 0:00:26]} 40. Bc5+ {[%emt 0:00:37]} Kf6 {[%emt 0:00:19]} 41. Rb6 {[%emt 0:00:27]} Rxb6 {[%emt 0:00:32]} 42. axb6 {[%emt 0:00:12]} Bc6 {[%emt 0:00:02]} 43. Ra6 {[%emt 0:00:26]} Rh7 {[%emt 0:00:33]} 44. Bd4+ {[%emt 0:00:27]} Kg5 {[%emt 0:00:31]} 45. Be5 {[%emt 0:00:49]} Rb7 {[%emt 0:00:27]} 46. Bc7 {[%emt 0:00:23]} h5 {[%emt 0:00:21]} 47. Ra8 {[%emt 0:00:08]} Kg6 {[%emt 0:00:42]} 48. Rg8+ {[%emt 0:00:23]} Kh6 {[%emt 0:00:18]} 49. Rd8 {[%emt 0:00:16]} Kg6 {[%emt 0:00:18]} 50. Rd6 {[%emt 0:00:05]} Be8 {[%emt 0:00:13]} 51. Rxe6+ {[%emt 0:00:07]} Kf7 {[%emt 0:00:04]} 52. Re5 {[%emt 0:00:09]} Kg6 {[%emt 0:00:46]} 53. Rxd5 {[%emt 0:00:10]} Bf7 {[%emt 0:00:07]} 54. Rd6+ {[%emt 0:00:06]} Kg5 {[%emt 0:00:17]} 55. h3 {[%emt 0:00:34]} h4 {[%emt 0:00:13]} 56. Bd8+ {[%emt 0:00:15]} Kh5 {[%emt 0:00:15]} 57. gxh4 {[%emt 0:00:11]} Bg6 {[%emt 0:00:41]} 58. Bg5 {[%emt 0:00:23]} Rb8 {[%emt 0:00:13]} 59. Rd8 {[%emt 0:00:11]} 1-0

[Event "Gibraltar Junior Intl U16 2019"]
[Site "Caleta"]
[Date "2019.08.16"]
[Round "2.23"]
[White "Dhanwani, Aryan"]
[Black "Dharmasena, Gavith"]
[Result "0-1"]
[ECO "C50"]
[WhiteElo "1319"]
[BlackElo "1585"]
[Annotator "NA"]
[PlyCount "102"]
[EventDate "2019.08.16"]
[EventType "swiss"]
[EventCountry "GGB"]
[SourceTitle "playchess.com"]
[Source "ChessBase"]
[SourceQuality "1"]
[TimeControl "6600+10"]

1. e4 {[%emt 0:00:00]} e5 {[%emt 0:00:00]} 2. Nf3 {[%emt 0:00:06]} Nc6 {[%emt 0:00:02]} 3. Bc4 {[%emt 0:00:08]} Bc5 {[%emt 0:00:06]} 4. d3 {[%emt 0:01:14]} Nf6 {[%emt 0:01:08]} 5. Nc3 {[%emt 0:00:29]} O-O {[%emt 0:00:52]} 6. Bg5 {[%emt 0:00:48]} h6 {[%emt 0:01:21]} 7. Bh4 {[%emt 0:00:07]} Be7 {[%emt 0:00:18]} 8. Bxf6 {[%emt 0:04:09]} Bxf6 {[%emt 0:00:35]} 9. Nd5 {[%emt 0:00:22]} d6 {[%emt 0:00:09]} 10. O-O {[%emt 0:00:24]} Bg4 {[%emt 0:00:08]} 11. c3 {[%emt 0:03:51]} Na5 {[%emt 0:00:32]} 12. Ne3 {[%emt 0:02:24]} Bh5 {[%emt 0:00:47]} 13. b4 {[%emt 0:01:02]} Nxc4 {[%emt 0:00:09]} 14. Nxc4 {[%emt 0:00:03]} c6 {[%emt 0:00:21]} 15. Ncd2 {[%emt 0:15:19]} d5 {[%emt 0:00:18]} 16. Qc2 {[%emt 0:02:45]} Rc8 {[%emt 0:00:52]} 17. d4 {[%emt 0:09:13]} dxe4 {[%emt 0:03:01]} 18. Qxe4 {[%emt 0:00:18]} exd4 {[%emt 0:00:14]} 19. cxd4 {[%emt 0:06:21]} Bg6 {[%emt 0:00:14]} 20. Qf4 {[%emt 0:00:40]} Qb6 {[%emt 0:00:38]} 21. a3 {[%emt 0:08:15]} Rcd8 {[%emt 0:02:00]} 22. Nb3 {[%emt 0:02:09]} Rfe8 {[%emt 0:03:09]} 23. Rfe1 {[%emt 0:01:35]} Rxe1+ {[%emt 0:11:44]} 24. Rxe1 {[%emt 0:00:04]} Bh5 {[%emt 0:01:30]} 25. g4 {[%emt 0:06:32]} Bg6 {[%emt 0:01:10]} 26. Nc5 {[%emt 0:02:02]} Qb5 {[%emt 0:01:36]} 27. Ne4 {[%emt 0:13:52]} Bxe4 {[%emt 0:00:52]} 28. Rxe4 {[%emt 0:01:04]} Qd3 {[%emt 0:00:59]} 29. Qe3 {[%emt 0:01:58]} Qd1+ {[%emt 0:00:46]} 30. Kg2 {[%emt 0:02:56]} Kf8 {[%emt 0:02:08]} 31. Qc3 {[%emt 0:05:16]} Rd5 {[%emt 0:02:06]} 32. Ne5 {[%emt 0:06:35]} Bxe5 {[%emt 0:00:06]} 33. dxe5 {[%emt 0:00:08]} Qd3 {[%emt 0:00:26]} 34. Qxd3 {[%emt 0:03:50]} Rxd3 {[%emt 0:00:20]} 35. Re3 {[%emt 0:00:05]} Rxe3 {[%emt 0:00:07]} 36. fxe3 {[%emt 0:00:06]} Ke7 {[%emt 0:00:36]} 37. Kf3 {[%emt 0:00:10]} Ke6 {[%emt 0:00:12]} 38. Ke4 {[%emt 0:00:10]} b6 {[%emt 0:00:36]} 39. h4 {[%emt 0:04:22]} c5 {[%emt 0:00:47]} 40. bxc5 {[%emt 0:01:00]} bxc5 {[%emt 0:00:07]} 41. a4 {[%emt 0:00:25]} g5 {[%emt 0:00:29]} 42. h5 {[%emt 0:01:39]} a5 {[%emt 0:00:06]} 43. Kd3 {[%emt 0:00:19]} Kxe5 {[%emt 0:00:07]} 44. Kc4 {[%emt 0:00:03]} f5 {[%emt 0:00:27]} 45. gxf5 {[%emt 0:00:48]} Kxf5 {[%emt 0:00:24]} 46. Kb5 {[%emt 0:00:57]} g4 {[%emt 0:00:17]} 47. Kxa5 {[%emt 0:00:16]} g3 {[%emt 0:00:13]} 48. e4+ {[%emt 0:00:22]} Kxe4 {[%emt 0:00:10]} 49. Kb6 {[%emt 0:00:03]} g2 {[%emt 0:00:10]} 50. a5 {[%emt 0:00:01]} g1=Q {[%emt 0:00:05]} 51. a6 {[%emt 0:00:10]} c4+ {[%emt 0:00:09]} 0-1

[Event "Gibraltar Junior Intl U16 2019"]
[Site "Caleta"]
[Date "2019.08.16"]
[Round "2.24"]
[White "Moughtin-Leay, John"]
[Black "Nayak, Aurideep"]
[Result "0-1"]
[ECO "A85"]
[WhiteElo "1215"]
[BlackElo "1546"]
[Annotator "NA"]
[PlyCount "106"]
[EventDate "2019.08.16"]
[EventType "swiss"]
[EventCountry "GGB"]
[SourceTitle "playchess.com"]
[Source "ChessBase"]
[SourceQuality "1"]
[TimeControl "6600+10"]

1. c4 {[%emt 0:00:00]} f5 {[%emt 0:00:00]} 2. Nc3 {[%emt 0:00:08]} Nf6 {[%emt 0:00:19]} 3. d4 {[%emt 0:00:13]} e6 {[%emt 0:00:06]} 4. f3 {[%emt 0:00:39]} Bb4 {[%emt 0:00:34]} 5. a3 {[%emt 0:00:34]} Bxc3+ {[%emt 0:00:16]} 6. bxc3 {[%emt 0:00:10]} d6 {[%emt 0:01:16]} 7. Bg5 {[%emt 0:01:03]} Nbd7 {[%emt 0:00:13]} 8. Qc2 {[%emt 0:00:35]} h6 {[%emt 0:00:38]} 9. Bh4 {[%emt 0:00:08]} O-O {[%emt 0:00:32]} 10. e3 {[%emt 0:00:16]} Qe8 {[%emt 0:00:45]} 11. Bd3 {[%emt 0:00:23]} b6 {[%emt 0:03:42]} 12. Ne2 {[%emt 0:00:25]} Bb7 {[%emt 0:00:20]} 13. Rb1 {[%emt 0:11:10]} Rb8 {[%emt 0:00:38]} 14. O-O {[%emt 0:08:35]} d5 {[%emt 0:00:28]} 15. Ng3 {[%emt 0:04:22]} g5 {[%emt 0:01:01]} 16. Nxf5 {[%emt 0:00:30]} exf5 {[%emt 0:00:30]} 17. Bg3 {[%emt 0:00:09]} Qxe3+ {[%emt 0:00:54]} 18. Kh1 {[%emt 0:00:25]} Qe7 {[%emt 0:02:10]} 19. Bxc7 {[%emt 0:00:15]} Rbc8 {[%emt 0:00:15]} 20. Rfe1 {[%emt 0:00:12]} Qf7 {[%emt 0:01:16]} 21. Bd6 {[%emt 0:00:50]} Rfe8 {[%emt 0:00:33]} 22. Bxf5 {[%emt 0:01:49]} Kg7 {[%emt 0:02:20]} 23. c5 {[%emt 0:05:22]} Rxe1+ {[%emt 0:03:03]} 24. Rxe1 {[%emt 0:00:15]} Re8 {[%emt 0:00:48]} 25. Rxe8 {[%emt 0:03:15]} Qxe8 {[%emt 0:00:20]} 26. h3 {[%emt 0:00:22]} bxc5 {[%emt 0:00:44]} 27. Bxd7 {[%emt 0:03:14]} Nxd7 {[%emt 0:00:24]} 28. Qb3 {[%emt 0:00:59]} Qc8 {[%emt 0:00:43]} 29. dxc5 {[%emt 0:00:37]} Nxc5 {[%emt 0:00:12]} 30. Bxc5 {[%emt 0:00:11]} Qxc5 {[%emt 0:00:26]} 31. Qxb7+ {[%emt 0:00:08]} Kg6 {[%emt 0:00:16]} 32. Qb1+ {[%emt 0:00:27]} Kf6 {[%emt 0:00:05]} 33. Qb2 {[%emt 0:00:30]} Ke5 {[%emt 0:00:25]} 34. c4+ {[%emt 0:00:18]} d4 {[%emt 0:00:15]} 35. Qe2+ {[%emt 0:00:22]} Kd6 {[%emt 0:00:15]} 36. Qd3 {[%emt 0:00:27]} Qe5 {[%emt 0:00:18]} 37. Qg6+ {[%emt 0:00:17]} Qe6 {[%emt 0:00:07]} 38. c5+ {[%emt 0:01:00]} Kd5 {[%emt 0:00:27]} 39. Qxe6+ {[%emt 0:00:39]} Kxe6 {[%emt 0:00:03]} 40. Kg1 {[%emt 0:00:09]} Kd5 {[%emt 0:00:02]} 41. c6 {[%emt 0:00:21]} Kxc6 {[%emt 0:00:02]} 42. Kf2 {[%emt 0:00:07]} Kc5 {[%emt 0:00:04]} 43. Ke2 {[%emt 0:00:17]} Kc4 {[%emt 0:00:04]} 44. Kd2 {[%emt 0:00:18]} Kb3 {[%emt 0:02:32]} 45. Kd3 {[%emt 0:00:12]} Kxa3 {[%emt 0:00:58]} 46. Kc4 {[%emt 0:00:29]} a5 {[%emt 0:00:27]} 47. g3 {[%emt 0:00:18]} Kb2 {[%emt 0:00:05]} 48. Kxd4 {[%emt 0:00:20]} a4 {[%emt 0:00:04]} 49. Ke4 {[%emt 0:00:10]} a3 {[%emt 0:00:11]} 50. Kf5 {[%emt 0:00:10]} a2 {[%emt 0:01:01]} 51. Kg6 {[%emt 0:00:07]} a1=Q {[%emt 0:00:20]} 52. Kh5 {[%emt 0:00:26]} Qa6 {[%emt 0:00:17]} 53. Kg4 {[%emt 0:00:09]} Qe6+ {[%emt 0:00:14]} 0-1